[Event "December 5 Early 2023"]
[Site "https://www.chess.com"]
[Date "2023.12.05"]
[Round "3"]
[White "Lenaerts, Lennert"]
[Black "Rosh Jain"]
[Result "1-0"]
[Board "126"]
[TimeControl "180+1"]
[WhiteFideId "211435"]
[BlackFideId "25789465"]
[WhiteElo "2617"]
[BlackElo "2438"]
[WhiteTeam "BEL"]
[BlackTeam "IND"]
[WhiteClock "0:01:29"]
[BlackClock "0:01:25"]

1. d4 {[%clk 0:03:00]}  Nf6 {[%clk 0:02:59]} 2. c4 {[%clk 0:03:00]}  e6 {[%clk 0:02:59]} 3. Nc3 {[%clk 0:03:00]}  Bb4 {[%clk 0:02:59]} 4. g3 {[%clk 0:03:00]}  O-O {[%clk 0:02:54]} 5. Bg2 {[%clk 0:03:00]}  c5 {[%clk 0:02:54]} 6. Nf3 {[%clk 0:02:59]}  Nc6 {[%clk 0:02:50]} 7. O-O {[%clk 0:02:59]}  cxd4 {[%clk 0:02:49]} 8. Nxd4 {[%clk 0:03:00]}  Nxd4 {[%clk 0:02:48]} 9. Qxd4 {[%clk 0:02:59]}  d6 {[%clk 0:02:48]} 10. Rd1 {[%clk 0:02:59]}  Bc5 {[%clk 0:02:48]} 11. Qd3 {[%clk 0:02:56]}  Ng4 {[%clk 0:02:45]} 12. Ne4 {[%clk 0:02:53]}  Qc7 {[%clk 0:02:38]} 13. Bf4 {[%clk 0:02:44]}  e5 {[%clk 0:02:35]} 14. Bd2 {[%clk 0:02:42]}  Be6 {[%clk 0:02:31]} 15. Rac1 {[%clk 0:02:40]}  f5 {[%clk 0:02:30]} 16. Nxc5 {[%clk 0:02:39]}  dxc5 {[%clk 0:02:31]} 17. h3 {[%clk 0:02:33]}  e4 {[%clk 0:02:30]} 18. Qc3 {[%clk 0:02:30]}  Nf6 {[%clk 0:02:21]} 19. Bf4 {[%clk 0:02:30]}  Qf7 {[%clk 0:02:20]} 20. Rd2 {[%clk 0:02:24]}  Rfd8 {[%clk 0:02:19]} 21. Rcd1 {[%clk 0:02:24]}  Qe8 {[%clk 0:02:19]} 22. Be5 {[%clk 0:02:21]}  Kf7 {[%clk 0:02:17]} 23. b3 {[%clk 0:02:08]}  b6 {[%clk 0:02:15]} 24. a4 {[%clk 0:02:06]}  a5 {[%clk 0:02:14]} 25. Bc7 {[%clk 0:02:01]}  Rxd2 {[%clk 0:02:08]} 26. Rxd2 {[%clk 0:02:01]}  Qc6 {[%clk 0:01:59]} 27. Be5 {[%clk 0:02:01]}  Nd7 {[%clk 0:01:57]} 28. Bxg7 {[%clk 0:01:59]}  Rg8 {[%clk 0:01:54]} 29. Bh6 {[%clk 0:01:54]}  Qc7 {[%clk 0:01:40]} 30. Bf4 {[%clk 0:01:53]}  Qd8 {[%clk 0:01:40]} 31. Rd6 {[%clk 0:01:49]}  Qf6 {[%clk 0:01:38]} 32. Qd2 {[%clk 0:01:42]}  Ke7 {[%clk 0:01:35]} 33. h4 {[%clk 0:01:35]}  Ne5 {[%clk 0:01:25]} 34. Bg5 {[%clk 0:01:29]} 1-0

[Event "December 5 Early 2023"]
[Site "https://www.chess.com"]
[Date "2023.12.05"]
[Round "3"]
[White "Kozelov, Roman"]
[Black "Janaszak, Dawid"]
[Result "0-1"]
[Board "127"]
[TimeControl "180+1"]
[WhiteFideId "14133377"]
[BlackFideId "1119206"]
[WhiteElo "2437"]
[BlackElo "2612"]
[WhiteTeam "UKR"]
[BlackTeam "POL"]
[WhiteClock "0:01:49"]
[BlackClock "0:02:40"]

1. e4 {[%clk 0:03:00]}  c5 {[%clk 0:02:59]} 2. Nf3 {[%clk 0:03:00]}  Nc6 {[%clk 0:03:00]} 3. Bb5 {[%clk 0:02:59]}  e5 {[%clk 0:03:00]} 4. O-O {[%clk 0:02:58]}  Nge7 {[%clk 0:03:00]} 5. c3 {[%clk 0:02:57]}  g6 {[%clk 0:03:01]} 6. d4 {[%clk 0:02:56]}  cxd4 {[%clk 0:03:01]} 7. cxd4 {[%clk 0:02:56]}  exd4 {[%clk 0:03:02]} 8. Nxd4 {[%clk 0:02:56]}  Bg7 {[%clk 0:03:03]} 9. Be3 {[%clk 0:02:55]}  O-O {[%clk 0:03:03]} 10. Nc3 {[%clk 0:02:55]}  d5 {[%clk 0:03:03]} 11. exd5 {[%clk 0:02:52]}  Nxd5 {[%clk 0:03:04]} 12. Nxc6 {[%clk 0:02:50]}  bxc6 {[%clk 0:02:51]} 13. Bxc6 {[%clk 0:02:49]}  Nxe3 {[%clk 0:02:45]} 14. Qxd8 {[%clk 0:02:32]}  Rxd8 {[%clk 0:02:44]} 15. Bxa8 {[%clk 0:02:28]}  Nxf1 {[%clk 0:02:43]} 16. Rxf1 {[%clk 0:02:06]}  Ba6 {[%clk 0:02:43]} 17. Be4 {[%clk 0:01:56]}  Bxf1 {[%clk 0:02:41]} 18. Kxf1 {[%clk 0:01:49]}  Rd2 {[%clk 0:02:40]} 0-1

[Event "December 5 Early 2023"]
[Site "https://www.chess.com"]
[Date "2023.12.05"]
[Round "3"]
[White "Swicarz, Maciej"]
[Black "Principe, Gerson"]
[Result "0-1"]
[Board "129"]
[TimeControl "180+1"]
[WhiteFideId "1113585"]
[BlackFideId "3804550"]
[WhiteElo "2436"]
[BlackElo "2606"]
[WhiteTeam "POL"]
[BlackTeam "PER"]
[WhiteClock "0:00:00"]
[BlackClock "0:00:37"]

1. e4 {[%clk 0:03:00]}  c6 {[%clk 0:02:59]} 2. Nc3 {[%clk 0:03:00]}  d5 {[%clk 0:02:59]} 3. Qe2 {[%clk 0:03:00]}  e6 {[%clk 0:02:59]} 4. g3 {[%clk 0:02:58]}  Nf6 {[%clk 0:02:59]} 5. Bg2 {[%clk 0:02:59]}  Be7 {[%clk 0:03:00]} 6. f4 {[%clk 0:02:57]}  O-O {[%clk 0:03:00]} 7. Nf3 {[%clk 0:02:57]}  dxe4 {[%clk 0:02:59]} 8. Nxe4 {[%clk 0:02:55]}  Nbd7 {[%clk 0:03:00]} 9. d4 {[%clk 0:02:50]}  c5 {[%clk 0:02:53]} 10. Nxc5 {[%clk 0:02:43]}  Nxc5 {[%clk 0:02:52]} 11. dxc5 {[%clk 0:02:43]}  Bxc5 {[%clk 0:02:53]} 12. Be3 {[%clk 0:02:43]}  Bxe3 {[%clk 0:02:46]} 13. Qxe3 {[%clk 0:02:44]}  Qc7 {[%clk 0:02:46]} 14. c3 {[%clk 0:02:37]}  Bd7 {[%clk 0:02:46]} 15. Ne5 {[%clk 0:02:36]}  Bb5 {[%clk 0:02:45]} 16. O-O-O {[%clk 0:02:23]}  a5 {[%clk 0:02:38]} 17. Rd4 {[%clk 0:02:15]}  Bc6 {[%clk 0:02:31]} 18. Nxc6 {[%clk 0:02:11]}  bxc6 {[%clk 0:02:31]} 19. Rc4 {[%clk 0:02:02]}  Nd5 {[%clk 0:02:06]} 20. Qc5 {[%clk 0:02:01]}  Rfc8 {[%clk 0:02:01]} 21. Re1 {[%clk 0:01:49]}  Rab8 {[%clk 0:02:01]} 22. Re2 {[%clk 0:01:34]}  g6 {[%clk 0:01:51]} 23. Ra4 {[%clk 0:01:26]}  Rb5 {[%clk 0:01:50]} 24. Qd4 {[%clk 0:01:22]}  c5 {[%clk 0:01:46]} 25. Qe5 {[%clk 0:01:16]}  Nb6 {[%clk 0:01:35]} 26. Qxc7 {[%clk 0:01:11]}  Rxc7 {[%clk 0:01:36]} 27. Rae4 {[%clk 0:01:07]}  c4 {[%clk 0:01:36]} 28. Re5 {[%clk 0:01:05]}  Rcc5 {[%clk 0:01:33]} 29. Rxc5 {[%clk 0:01:04]}  Rxc5 {[%clk 0:01:34]} 30. Rd2 {[%clk 0:01:05]}  Nd5 {[%clk 0:01:32]} 31. Bxd5 {[%clk 0:00:48]}  exd5 {[%clk 0:01:33]} 32. Re2 {[%clk 0:00:48]}  Kf8 {[%clk 0:01:33]} 33. Kd2 {[%clk 0:00:43]}  Rc7 {[%clk 0:01:27]} 34. Re5 {[%clk 0:00:37]}  Rb7 {[%clk 0:01:25]} 35. Kc2 {[%clk 0:00:37]}  Rb5 {[%clk 0:01:25]} 36. b3 {[%clk 0:00:33]}  cxb3+ {[%clk 0:01:19]} 37. axb3 {[%clk 0:00:34]}  f6 {[%clk 0:01:20]} 38. Re6 {[%clk 0:00:34]}  Kf7 {[%clk 0:01:20]} 39. Ra6 {[%clk 0:00:34]}  Rc5 {[%clk 0:01:20]} 40. Kd3 {[%clk 0:00:27]}  Rb5 {[%clk 0:01:21]} 41. Kc2 {[%clk 0:00:19]}  Rc5 {[%clk 0:01:14]} 42. Ra7+ {[%clk 0:00:19]}  Ke6 {[%clk 0:01:15]} 43. Rxh7 {[%clk 0:00:18]}  d4 {[%clk 0:01:15]} 44. c4 {[%clk 0:00:18]}  a4 {[%clk 0:01:15]} 45. Ra7 {[%clk 0:00:11]}  axb3+ {[%clk 0:01:15]} 46. Kxb3 {[%clk 0:00:11]}  Kf5 {[%clk 0:01:10]} 47. Ra6 {[%clk 0:00:11]}  Rc8 {[%clk 0:00:48]} 48. Kb4 {[%clk 0:00:09]}  Rd8 {[%clk 0:00:43]} 49. Ra1 {[%clk 0:00:07]}  Ke4 {[%clk 0:00:41]} 50. c5 {[%clk 0:00:07]}  d3 {[%clk 0:00:40]} 51. Kc4 {[%clk 0:00:07]}  d2 {[%clk 0:00:39]} 52. Rd1 {[%clk 0:00:07]}  Ke3 {[%clk 0:00:40]} 53. c6 {[%clk 0:00:06]}  Ke2 {[%clk 0:00:41]} 54. Ra1 {[%clk 0:00:02]}  d1=Q {[%clk 0:00:39]} 55. Rxd1 {[%clk 0:00:02]}  Rxd1 {[%clk 0:00:38]} 56. Kb5 {[%clk 0:00:02]}  Rc1 {[%clk 0:00:36]} 57. Kb6 {[%clk 0:00:02]}  Kf3 {[%clk 0:00:36]} 58. c7 {[%clk 0:00:02]}  Kg2 {[%clk 0:00:37]} 59. g4 {[%clk 0:00:01]}  Kxh2 {[%clk 0:00:36]} 60. g5 {[%clk 0:00:01]}  fxg5 {[%clk 0:00:37]} 61. fxg5 {[%clk 0:00:00]}  Kg3 {[%clk 0:00:37]} 0-1

[Event "December 5 Early 2023"]
[Site "https://www.chess.com"]
[Date "2023.12.05"]
[Round "3"]
[White "Parra Gomez, Adrian"]
[Black "Aswath, S"]
[Result "0-1"]
[Board "131"]
[TimeControl "180+1"]
[WhiteFideId "3513106"]
[BlackFideId "46694919"]
[WhiteElo "2428"]
[BlackElo "2604"]
[WhiteTeam "CUB"]
[BlackTeam "IND"]
[WhiteClock "0:00:00"]
[BlackClock "0:00:50"]

1. d4 {[%clk 0:03:00]}  Nf6 {[%clk 0:02:59]} 2. c4 {[%clk 0:03:00]}  e6 {[%clk 0:02:59]} 3. Nc3 {[%clk 0:03:00]}  Bb4 {[%clk 0:02:56]} 4. f3 {[%clk 0:02:59]}  O-O {[%clk 0:02:53]} 5. e4 {[%clk 0:02:58]}  d5 {[%clk 0:02:53]} 6. e5 {[%clk 0:02:55]}  Nfd7 {[%clk 0:02:52]} 7. cxd5 {[%clk 0:02:55]}  exd5 {[%clk 0:02:51]} 8. f4 {[%clk 0:02:56]}  c5 {[%clk 0:02:45]} 9. Be3 {[%clk 0:02:56]}  Nc6 {[%clk 0:02:45]} 10. Nf3 {[%clk 0:02:56]}  Re8 {[%clk 0:02:15]} 11. Bb5 {[%clk 0:02:19]}  Qa5 {[%clk 0:02:12]} 12. Bxc6 {[%clk 0:02:19]}  bxc6 {[%clk 0:02:12]} 13. O-O {[%clk 0:01:59]}  Bxc3 {[%clk 0:01:54]} 14. bxc3 {[%clk 0:02:00]}  Qxc3 {[%clk 0:01:54]} 15. Bf2 {[%clk 0:01:59]}  c4 {[%clk 0:01:51]} 16. f5 {[%clk 0:01:53]}  Nf8 {[%clk 0:01:47]} 17. Nh4 {[%clk 0:01:47]}  Qd3 {[%clk 0:01:42]} 18. Qg4 {[%clk 0:01:41]}  Qe4 {[%clk 0:01:42]} 19. Qxe4 {[%clk 0:01:32]}  dxe4 {[%clk 0:01:43]} 20. Rfe1 {[%clk 0:01:32]}  g5 {[%clk 0:01:30]} 21. fxg6 {[%clk 0:01:28]}  hxg6 {[%clk 0:01:29]} 22. Rxe4 {[%clk 0:01:24]}  Be6 {[%clk 0:01:30]} 23. Nf3 {[%clk 0:01:17]}  Bd5 {[%clk 0:01:30]} 24. Rh4 {[%clk 0:01:13]}  Ne6 {[%clk 0:01:30]} 25. Rc1 {[%clk 0:01:06]}  Rab8 {[%clk 0:01:29]} 26. Rh3 {[%clk 0:01:02]}  Nf4 {[%clk 0:01:27]} 27. Ng5 {[%clk 0:00:31]}  Ne2+ {[%clk 0:01:15]} 28. Kf1 {[%clk 0:00:30]}  Nxc1 {[%clk 0:01:16]} 29. Nh7 {[%clk 0:00:24]}  Kg7 {[%clk 0:01:16]} 30. Bh4 {[%clk 0:00:21]}  g5 {[%clk 0:01:02]} 31. Bxg5 {[%clk 0:00:20]}  Rh8 {[%clk 0:00:57]} 32. Bf6+ {[%clk 0:00:16]}  Kg6 {[%clk 0:00:57]} 33. Rg3+ {[%clk 0:00:09]}  Kxh7 {[%clk 0:00:55]} 34. Rg7+ {[%clk 0:00:04]}  Kh6 {[%clk 0:00:55]} 35. g4 {[%clk 0:00:04]}  Rhg8 {[%clk 0:00:50]} 36. g5+ {[%clk 0:00:04]}  Kh5 {[%clk 0:00:50]} 37. Rh7+ {[%clk 0:00:04]}  Kg4 {[%clk 0:00:50]} 38. h3+ {[%clk 0:00:00]}  Kf3 {[%clk 0:00:50]} 0-1

[Event "December 5 Early 2023"]
[Site "https://www.chess.com"]
[Date "2023.12.05"]
[Round "3"]
[White "Bychkov, Vladimir"]
[Black "Toman, Ondrej"]
[Result "1-0"]
[Board "132"]
[TimeControl "180+1"]
[WhiteFideId "24151513"]
[BlackFideId "344516"]
[WhiteElo "2428"]
[BlackElo "2604"]
[WhiteTeam "RUS"]
[BlackTeam "CZE"]
[WhiteClock "0:00:15"]
[BlackClock "0:00:06"]

1. e4 {[%clk 0:03:00]}  c6 {[%clk 0:03:00]} 2. d4 {[%clk 0:02:58]}  d5 {[%clk 0:03:00]} 3. e5 {[%clk 0:02:59]}  Bf5 {[%clk 0:02:59]} 4. h4 {[%clk 0:02:58]}  h5 {[%clk 0:02:58]} 5. Bd3 {[%clk 0:02:58]}  Bxd3 {[%clk 0:02:57]} 6. Qxd3 {[%clk 0:02:59]}  Qa5+ {[%clk 0:02:48]} 7. Nd2 {[%clk 0:02:57]}  e6 {[%clk 0:02:47]} 8. Nf3 {[%clk 0:02:57]}  Qb5 {[%clk 0:02:39]} 9. c4 {[%clk 0:02:54]}  dxc4 {[%clk 0:02:36]} 10. Nxc4 {[%clk 0:02:52]}  Nd7 {[%clk 0:02:31]} 11. O-O {[%clk 0:02:46]}  Nb6 {[%clk 0:02:30]} 12. b3 {[%clk 0:02:41]}  Be7 {[%clk 0:02:16]} 13. a4 {[%clk 0:02:30]}  Qd5 {[%clk 0:02:08]} 14. a5 {[%clk 0:02:28]}  Nxc4 {[%clk 0:02:04]} 15. bxc4 {[%clk 0:02:26]}  Qd7 {[%clk 0:02:03]} 16. Ba3 {[%clk 0:02:03]}  Bxa3 {[%clk 0:01:56]} 17. Rxa3 {[%clk 0:02:01]}  Ne7 {[%clk 0:01:56]} 18. Rb1 {[%clk 0:01:58]}  Nf5 {[%clk 0:01:49]} 19. Rab3 {[%clk 0:01:57]}  Rb8 {[%clk 0:01:48]} 20. Qe4 {[%clk 0:01:51]}  O-O {[%clk 0:01:45]} 21. g4 {[%clk 0:01:41]}  hxg4 {[%clk 0:01:43]} 22. Qxg4 {[%clk 0:01:42]}  Rfd8 {[%clk 0:01:30]} 23. Rd3 {[%clk 0:01:34]}  b6 {[%clk 0:01:26]} 24. a6 {[%clk 0:01:29]}  b5 {[%clk 0:01:18]} 25. cxb5 {[%clk 0:01:24]}  Rxb5 {[%clk 0:01:17]} 26. Rxb5 {[%clk 0:01:21]}  cxb5 {[%clk 0:01:18]} 27. h5 {[%clk 0:01:17]}  Rc8 {[%clk 0:01:17]} 28. Kg2 {[%clk 0:01:07]}  Qd5 {[%clk 0:01:14]} 29. Kh2 {[%clk 0:01:03]}  Rc1 {[%clk 0:01:08]} 30. Qg2 {[%clk 0:00:52]}  b4 {[%clk 0:01:00]} 31. Ng5 {[%clk 0:00:47]}  Qxg2+ {[%clk 0:00:57]} 32. Kxg2 {[%clk 0:00:46]}  Rc3 {[%clk 0:00:55]} 33. Rd2 {[%clk 0:00:37]}  b3 {[%clk 0:00:53]} 34. d5 {[%clk 0:00:24]}  exd5 {[%clk 0:00:24]} 35. Rxd5 {[%clk 0:00:22]}  g6 {[%clk 0:00:17]} 36. hxg6 {[%clk 0:00:18]}  fxg6 {[%clk 0:00:17]} 37. Rb5 {[%clk 0:00:17]}  Kg7 {[%clk 0:00:14]} 38. Rb7+ {[%clk 0:00:16]}  Kf8 {[%clk 0:00:14]} 39. e6 {[%clk 0:00:15]}  Rc2 {[%clk 0:00:10]} 40. Ne4 {[%clk 0:00:15]}  Rc8 {[%clk 0:00:07]} 41. Nf6 {[%clk 0:00:15]}  Nd4 {[%clk 0:00:06]} 42. Rf7# {[%clk 0:00:15]} 1-0

[Event "December 5 Early 2023"]
[Site "https://www.chess.com"]
[Date "2023.12.05"]
[Round "3"]
[White "Ginzburg, Yakov"]
[Black "Mestnikov, Aisen"]
[Result "0-1"]
[Board "133"]
[TimeControl "180+1"]
[WhiteFideId "4157176"]
[BlackFideId "34130117"]
[WhiteElo "2603"]
[BlackElo "2427"]
[WhiteTeam "RUS"]
[BlackTeam "RUS"]
[WhiteClock "0:00:22"]
[BlackClock "0:00:09"]

1. e4 {[%clk 0:03:00]}  e5 {[%clk 0:02:53]} 2. Nf3 {[%clk 0:03:00]}  Nc6 {[%clk 0:02:51]} 3. Bb5 {[%clk 0:02:59]}  a6 {[%clk 0:02:51]} 4. Bxc6 {[%clk 0:02:59]}  dxc6 {[%clk 0:02:51]} 5. O-O {[%clk 0:02:58]}  f6 {[%clk 0:02:50]} 6. d4 {[%clk 0:02:57]}  exd4 {[%clk 0:02:50]} 7. Nxd4 {[%clk 0:02:57]}  c5 {[%clk 0:02:49]} 8. Nb3 {[%clk 0:02:57]}  Qxd1 {[%clk 0:02:48]} 9. Rxd1 {[%clk 0:02:57]}  Bd6 {[%clk 0:02:49]} 10. Na5 {[%clk 0:02:56]}  b6 {[%clk 0:02:41]} 11. Nc4 {[%clk 0:02:55]}  Be7 {[%clk 0:02:42]} 12. Bf4 {[%clk 0:02:53]}  Be6 {[%clk 0:02:38]} 13. Ne3 {[%clk 0:02:46]}  Rc8 {[%clk 0:02:24]} 14. Nc3 {[%clk 0:02:45]}  c6 {[%clk 0:02:22]} 15. a4 {[%clk 0:02:36]}  h5 {[%clk 0:02:11]} 16. a5 {[%clk 0:02:25]}  b5 {[%clk 0:02:10]} 17. Bd6 {[%clk 0:02:23]}  Bxd6 {[%clk 0:02:07]} 18. Rxd6 {[%clk 0:02:22]}  Ke7 {[%clk 0:02:07]} 19. Rad1 {[%clk 0:02:19]}  Nh6 {[%clk 0:02:08]} 20. e5 {[%clk 0:02:08]}  fxe5 {[%clk 0:01:57]} 21. Ne4 {[%clk 0:02:07]}  Nf7 {[%clk 0:01:36]} 22. R6d2 {[%clk 0:02:04]}  c4 {[%clk 0:00:49]} 23. Nc5 {[%clk 0:02:03]}  Ra8 {[%clk 0:00:47]} 24. h4 {[%clk 0:01:53]}  Rhd8 {[%clk 0:00:44]} 25. g3 {[%clk 0:01:43]}  Rxd2 {[%clk 0:00:40]} 26. Rxd2 {[%clk 0:01:44]}  Nd8 {[%clk 0:00:38]} 27. f4 {[%clk 0:01:41]}  exf4 {[%clk 0:00:32]} 28. gxf4 {[%clk 0:01:42]}  Ra7 {[%clk 0:00:32]} 29. Rxd8 {[%clk 0:01:38]}  Kxd8 {[%clk 0:00:28]} 30. Nxe6+ {[%clk 0:01:37]}  Ke8 {[%clk 0:00:23]} 31. Nc5 {[%clk 0:01:15]}  g6 {[%clk 0:00:21]} 32. Kf2 {[%clk 0:01:13]}  Ke7 {[%clk 0:00:20]} 33. Kf3 {[%clk 0:01:09]}  Kd6 {[%clk 0:00:20]} 34. Ne4+ {[%clk 0:01:09]}  Ke6 {[%clk 0:00:19]} 35. c3 {[%clk 0:01:05]}  Ke7 {[%clk 0:00:13]} 36. Nc2 {[%clk 0:00:56]}  Rd7 {[%clk 0:00:11]} 37. Nc5 {[%clk 0:00:54]}  Rd2 {[%clk 0:00:10]} 38. Nd4 {[%clk 0:00:52]}  Rxb2 {[%clk 0:00:10]} 39. Nxa6 {[%clk 0:00:52]}  Kd6 {[%clk 0:00:10]} 40. Ke4 {[%clk 0:00:29]}  c5 {[%clk 0:00:09]} 41. Nf3 {[%clk 0:00:22]}  Re2# {[%clk 0:00:09]} 0-1

[Event "December 5 Early 2023"]
[Site "https://www.chess.com"]
[Date "2023.12.05"]
[Round "3"]
[White "Federzoni, Enzo"]
[Black "Guliev, Logman"]
[Result "0-1"]
[Board "138"]
[TimeControl "180+1"]
[WhiteFideId "2173301"]
[BlackFideId "13400061"]
[WhiteElo "2412"]
[BlackElo "2598"]
[WhiteTeam "BRA"]
[BlackTeam "AZE"]
[WhiteClock "0:00:03"]
[BlackClock "0:00:08"]

1. e4 {[%clk 0:03:00]}  c5 {[%clk 0:02:59]} 2. Nf3 {[%clk 0:03:00]}  e6 {[%clk 0:02:59]} 3. d4 {[%clk 0:03:00]}  cxd4 {[%clk 0:03:00]} 4. Nxd4 {[%clk 0:03:01]}  Nf6 {[%clk 0:02:58]} 5. Nc3 {[%clk 0:03:02]}  d6 {[%clk 0:02:58]} 6. g4 {[%clk 0:03:00]}  Be7 {[%clk 0:02:58]} 7. g5 {[%clk 0:02:58]}  Nfd7 {[%clk 0:02:57]} 8. h4 {[%clk 0:02:58]}  Nc6 {[%clk 0:02:55]} 9. Be3 {[%clk 0:02:57]}  a6 {[%clk 0:02:53]} 10. Qe2 {[%clk 0:02:57]}  Qc7 {[%clk 0:02:51]} 11. O-O-O {[%clk 0:02:57]}  b5 {[%clk 0:02:45]} 12. a3 {[%clk 0:02:57]}  Bb7 {[%clk 0:02:45]} 13. f4 {[%clk 0:02:55]}  Nb6 {[%clk 0:02:38]} 14. Qf2 {[%clk 0:02:51]}  Nc4 {[%clk 0:02:30]} 15. Rh3 {[%clk 0:02:43]}  Nxe3 {[%clk 0:02:25]} 16. Qxe3 {[%clk 0:02:39]}  Nxd4 {[%clk 0:02:17]} 17. Qxd4 {[%clk 0:01:28]}  e5 {[%clk 0:02:16]} 18. Qe3 {[%clk 0:01:16]}  exf4 {[%clk 0:02:14]} 19. Qxf4 {[%clk 0:01:17]}  O-O {[%clk 0:02:14]} 20. Nd5 {[%clk 0:01:17]}  Bxd5 {[%clk 0:02:12]} 21. exd5 {[%clk 0:01:18]}  f5 {[%clk 0:01:39]} 22. Rc3 {[%clk 0:01:09]}  Qd7 {[%clk 0:01:32]} 23. Re1 {[%clk 0:01:08]}  Rac8 {[%clk 0:01:32]} 24. Rxc8 {[%clk 0:01:06]}  Rxc8 {[%clk 0:01:29]} 25. Bd3 {[%clk 0:01:06]}  g6 {[%clk 0:01:29]} 26. h5 {[%clk 0:01:05]}  Bf8 {[%clk 0:01:23]} 27. hxg6 {[%clk 0:01:00]}  hxg6 {[%clk 0:01:23]} 28. Re6 {[%clk 0:01:00]}  Qh7 {[%clk 0:01:18]} 29. Kb1 {[%clk 0:00:59]}  Qh1+ {[%clk 0:01:14]} 30. Qc1 {[%clk 0:00:53]}  Qxc1+ {[%clk 0:01:02]} 31. Kxc1 {[%clk 0:00:54]}  Kf7 {[%clk 0:01:00]} 32. b3 {[%clk 0:00:51]}  Be7 {[%clk 0:00:57]} 33. Kd1 {[%clk 0:00:45]}  Bxg5 {[%clk 0:00:57]} 34. Rxd6 {[%clk 0:00:46]}  Ra8 {[%clk 0:00:46]} 35. c4 {[%clk 0:00:45]}  bxc4 {[%clk 0:00:45]} 36. bxc4 {[%clk 0:00:46]}  Be7 {[%clk 0:00:44]} 37. Rb6 {[%clk 0:00:42]}  Bxa3 {[%clk 0:00:44]} 38. d6 {[%clk 0:00:41]}  Rd8 {[%clk 0:00:42]} 39. Rxa6 {[%clk 0:00:37]}  Bxd6 {[%clk 0:00:41]} 40. Ke2 {[%clk 0:00:37]}  Bc5 {[%clk 0:00:32]} 41. Rc6 {[%clk 0:00:34]}  Re8+ {[%clk 0:00:28]} 42. Kf1 {[%clk 0:00:29]}  Re5 {[%clk 0:00:28]} 43. Kg2 {[%clk 0:00:26]}  g5 {[%clk 0:00:27]} 44. Rc7+ {[%clk 0:00:24]}  Kg6 {[%clk 0:00:24]} 45. Rc8 {[%clk 0:00:24]}  g4 {[%clk 0:00:24]} 46. Rc7 {[%clk 0:00:17]}  Kf6 {[%clk 0:00:24]} 47. Rc8 {[%clk 0:00:17]}  Kg5 {[%clk 0:00:23]} 48. Rg8+ {[%clk 0:00:17]}  Kf4 {[%clk 0:00:24]} 49. Rc8 {[%clk 0:00:11]}  Ke3 {[%clk 0:00:22]} 50. Bf1 {[%clk 0:00:10]}  f4 {[%clk 0:00:22]} 51. Rd8 {[%clk 0:00:10]}  f3+ {[%clk 0:00:19]} 52. Kg3 {[%clk 0:00:10]}  Bd4 {[%clk 0:00:15]} 53. Rd5 {[%clk 0:00:10]}  Re4 {[%clk 0:00:13]} 54. c5 {[%clk 0:00:08]}  Be5+ {[%clk 0:00:13]} 55. Kh4 {[%clk 0:00:05]}  g3+ {[%clk 0:00:12]} 56. Kh3 {[%clk 0:00:06]}  Kf2 {[%clk 0:00:12]} 57. Bd3 {[%clk 0:00:03]}  g2 {[%clk 0:00:09]} 58. Bxe4 {[%clk 0:00:02]}  g1=Q {[%clk 0:00:09]} 59. Rd2+ {[%clk 0:00:02]}  Ke3 {[%clk 0:00:08]} 60. Rh2 {[%clk 0:00:03]} 0-1

[Event "December 5 Early 2023"]
[Site "https://www.chess.com"]
[Date "2023.12.05"]
[Round "3"]
[White "Bochnicka, Vladimir"]
[Black "Jaiveer Mahendru"]
[Result "0-1"]
[Board "139"]
[TimeControl "180+1"]
[WhiteFideId "14943450"]
[BlackFideId "25611151"]
[WhiteElo "2409"]
[BlackElo "2598"]
[WhiteTeam "SVK"]
[BlackTeam "IND"]
[WhiteClock "0:00:05"]
[BlackClock "0:00:05"]

1. e4 {[%clk 0:03:00]}  e6 {[%clk 0:02:57]} 2. d4 {[%clk 0:03:00]}  d5 {[%clk 0:02:58]} 3. e5 {[%clk 0:03:01]}  c5 {[%clk 0:02:57]} 4. c3 {[%clk 0:03:02]}  Nc6 {[%clk 0:02:57]} 5. Nf3 {[%clk 0:03:02]}  Qb6 {[%clk 0:02:58]} 6. Bd3 {[%clk 0:03:02]}  Bd7 {[%clk 0:02:54]} 7. O-O {[%clk 0:03:01]}  Nge7 {[%clk 0:02:51]} 8. h4 {[%clk 0:03:01]}  h6 {[%clk 0:02:46]} 9. h5 {[%clk 0:02:59]}  cxd4 {[%clk 0:02:42]} 10. Re1 {[%clk 0:02:59]}  O-O-O {[%clk 0:02:29]} 11. b4 {[%clk 0:02:40]}  dxc3 {[%clk 0:02:27]} 12. b5 {[%clk 0:02:41]}  Nd4 {[%clk 0:02:18]} 13. Nxd4 {[%clk 0:02:25]}  Qxd4 {[%clk 0:02:19]} 14. Be3 {[%clk 0:02:25]}  Qb4 {[%clk 0:01:43]} 15. Bxa7 {[%clk 0:02:05]}  Bxb5 {[%clk 0:01:40]} 16. Nxc3 {[%clk 0:01:58]}  Bxd3 {[%clk 0:01:38]} 17. Qxd3 {[%clk 0:01:57]}  Nc6 {[%clk 0:01:37]} 18. Nb5 {[%clk 0:01:08]}  Qa5 {[%clk 0:01:06]} 19. Rec1 {[%clk 0:01:04]}  Kd7 {[%clk 0:01:05]} 20. Be3 {[%clk 0:00:39]}  Nxe5 {[%clk 0:00:56]} 21. Qb3 {[%clk 0:00:25]}  Nc4 {[%clk 0:00:28]} 22. Rxc4 {[%clk 0:00:22]}  dxc4 {[%clk 0:00:29]} 23. Qxc4 {[%clk 0:00:23]}  Bd6 {[%clk 0:00:21]} 24. Rd1 {[%clk 0:00:17]}  Ke7 {[%clk 0:00:19]} 25. Nxd6 {[%clk 0:00:17]}  Rxd6 {[%clk 0:00:20]} 26. Bc5 {[%clk 0:00:17]}  Rd8 {[%clk 0:00:18]} 27. Bb4 {[%clk 0:00:11]}  Qa6 {[%clk 0:00:17]} 28. Qc7+ {[%clk 0:00:11]}  Rd7 {[%clk 0:00:18]} 29. Bxd6+ {[%clk 0:00:11]}  Ke8 {[%clk 0:00:17]} 30. Qc8+ {[%clk 0:00:07]}  Rd8 {[%clk 0:00:17]} 31. Qc5 {[%clk 0:00:06]}  Qa4 {[%clk 0:00:13]} 32. Re1 {[%clk 0:00:04]}  Qc6 {[%clk 0:00:12]} 33. Bf8 {[%clk 0:00:04]}  Qxc5 {[%clk 0:00:10]} 34. Bxc5 {[%clk 0:00:05]}  Rd2 {[%clk 0:00:10]} 35. a3 {[%clk 0:00:04]}  Rc2 {[%clk 0:00:11]} 36. Bb4 {[%clk 0:00:04]}  Kd7 {[%clk 0:00:11]} 37. f3 {[%clk 0:00:04]}  Kc6 {[%clk 0:00:11]} 38. Kh2 {[%clk 0:00:04]}  Kd5 {[%clk 0:00:09]} 39. Rd1+ {[%clk 0:00:05]}  Ke5 {[%clk 0:00:09]} 40. Kg3 {[%clk 0:00:05]}  Kf6 {[%clk 0:00:09]} 41. Rd7 {[%clk 0:00:06]}  b5 {[%clk 0:00:09]} 42. Rb7 {[%clk 0:00:06]}  Kg5 {[%clk 0:00:07]} 43. Rxb5+ {[%clk 0:00:06]}  f5 {[%clk 0:00:08]} 44. a4 {[%clk 0:00:04]}  Kxh5 {[%clk 0:00:06]} 45. a5 {[%clk 0:00:05]}  g5 {[%clk 0:00:04]} 46. a6 {[%clk 0:00:05]}  f4+ {[%clk 0:00:05]} 47. Kh3 {[%clk 0:00:05]}  Kg6 {[%clk 0:00:03]} 48. a7 {[%clk 0:00:05]}  Rc8 {[%clk 0:00:03]} 49. Rb8 {[%clk 0:00:06]}  Rc1 {[%clk 0:00:03]} 50. a8=Q {[%clk 0:00:06]}  Rh1+ {[%clk 0:00:04]} 51. Kg4 {[%clk 0:00:05]}  h5# {[%clk 0:00:05]} 0-1